[Event "*** Titled Tuesday Blitz"]
[Site "Chess.com"]
[Date "2020.04.21"]
[Round "1"]
[White "algatar2020"]
[Black "maximnovik"]
[Result "1/2-1/2"]
[WhiteElo "1929"]
[BlackElo "2461"]
[TimeControl "180+1"]
[EndTime "10:08:00 PDT"]
[Termination "Game drawn by repetition"]

1. d4 {[%clk 0:02:59.4]} 1... Nf6 {[%clk 0:02:58.8]} 2. Nf3 {[%clk 0:02:59.5]}
2... g6 {[%clk 0:02:58.9]} 3. Bf4 {[%clk 0:03:00]} 3... Bg7 {[%clk 0:02:58.4]}
4. e3 {[%clk 0:03:00.4]} 4... c5 {[%clk 0:02:59]} 5. c3 {[%clk 0:03:00.1]} 5...
O-O {[%clk 0:02:59.1]} 6. Nbd2 {[%clk 0:02:59.8]} 6... d6 {[%clk 0:02:59.5]} 7.
h3 {[%clk 0:02:59.8]} 7... Be6 {[%clk 0:02:59.8]} 8. Be2 {[%clk 0:02:59]} 8...
Qb6 {[%clk 0:03:00.1]} 9. Qc2 {[%clk 0:02:54.2]} 9... Nc6 {[%clk 0:02:59.2]} 10.
Nc4 {[%clk 0:02:51.6]} 10... Bxc4 {[%clk 0:02:28.7]} 11. Bxc4 {[%clk 0:02:50.7]}
11... Rac8 {[%clk 0:02:28.8]} 12. Qe2 {[%clk 0:02:46.5]} 12... d5 {[%clk
0:02:10.2]} 13. Bd3 {[%clk 0:02:40.4]} 13... c4 {[%clk 0:02:10.1]} 14. Bb1
{[%clk 0:02:39.5]} 14... Nh5 {[%clk 0:02:10]} 15. Bh2 {[%clk 0:02:38.1]} 15...
Rfe8 {[%clk 0:02:08]} 16. O-O {[%clk 0:02:35.2]} 16... e5 {[%clk 0:02:07.6]} 17.
g4 {[%clk 0:02:13.6]} 17... exd4 {[%clk 0:02:01.2]} 18. gxh5 {[%clk 0:02:11]}
18... dxc3 {[%clk 0:01:53.9]} 19. bxc3 {[%clk 0:02:01.3]} 19... Bxc3 {[%clk
0:01:53.1]} 20. hxg6 {[%clk 0:01:59.2]} 20... hxg6 {[%clk 0:01:51.5]} 21. Bxg6
{[%clk 0:01:50]} 21... fxg6 {[%clk 0:01:48.2]} 22. Rab1 {[%clk 0:01:44]} 22...
Qa6 {[%clk 0:01:48]} 23. Qc2 {[%clk 0:01:34.6]} 23... Bg7 {[%clk 0:01:44.5]} 24.
Qxg6 {[%clk 0:01:33.2]} 24... Nd4 {[%clk 0:01:36.7]} 25. Qxa6 {[%clk 0:01:24.2]}
25... Nxf3+ {[%clk 0:01:36.1]} 26. Kg2 {[%clk 0:01:24.3]} 26... Nh4+ {[%clk
0:01:27.7]} 27. Kg3 {[%clk 0:01:24.4]} 27... bxa6 {[%clk 0:01:16.7]} 28. Kxh4
{[%clk 0:01:24.4]} 28... c3 {[%clk 0:01:17]} 29. Rg1 {[%clk 0:01:11.1]} 29...
Re7 {[%clk 0:01:07.1]} 30. Bd6 {[%clk 0:01:08.4]} 30... Rf7 {[%clk 0:01:00.9]}
31. Be5 {[%clk 0:01:06.4]} 31... Rc4+ {[%clk 0:00:55.3]} 32. f4 {[%clk
0:00:58.9]} 32... c2 {[%clk 0:00:54.9]} 33. Rbc1 {[%clk 0:00:56.1]} 33... Kh7
{[%clk 0:00:48.7]} 34. Rxg7+ {[%clk 0:00:54.5]} 34... Rxg7 {[%clk 0:00:48.7]}
35. Bxg7 {[%clk 0:00:54.9]} 35... Kxg7 {[%clk 0:00:48.9]} 36. Kg5 {[%clk
0:00:55.1]} 36... Rc3 {[%clk 0:00:46.7]} 37. h4 {[%clk 0:00:51.2]} 37... a5
{[%clk 0:00:41.1]} 38. a4 {[%clk 0:00:48.4]} 38... Kf7 {[%clk 0:00:37.5]} 39. h5
{[%clk 0:00:47.7]} 39... Ke6 {[%clk 0:00:28.4]} 40. h6 {[%clk 0:00:47.5]} 40...
Rxe3 {[%clk 0:00:25.1]} 41. h7 {[%clk 0:00:40.7]} 41... Rh3 {[%clk 0:00:23.6]}
42. Kg6 {[%clk 0:00:37.6]} 42... Rg3+ {[%clk 0:00:21.6]} 43. Kh6 {[%clk
0:00:36.3]} 43... Rh3+ {[%clk 0:00:21.5]} 44. Kg7 {[%clk 0:00:33]} 44... Rg3+
{[%clk 0:00:20.7]} 45. Kh6 {[%clk 0:00:32.7]} 45... Rh3+ {[%clk 0:00:20.8]} 46.
Kg6 {[%clk 0:00:32.9]} 46... Rg3+ {[%clk 0:00:19.4]} 47. Kh6 {[%clk 0:00:25.5]}
1/2-1/2

[Event "*** Titled Tuesday Blitz"]
[Site "Chess.com"]
[Date "2020.04.21"]
[Round "1"]
[White "AshotParvanyan"]
[Black "Nellichka"]
[Result "1-0"]
[WhiteElo "2515"]
[BlackElo "2100"]
[TimeControl "180+1"]
[EndTime "10:08:01 PDT"]
[Termination "AshotParvanyan won on time"]

1. Nf3 {[%clk 0:03:00.9]} 1... d5 {[%clk 0:02:56.9]} 2. d4 {[%clk 0:02:59.6]}
2... Nf6 {[%clk 0:02:49.5]} 3. c4 {[%clk 0:02:59.4]} 3... dxc4 {[%clk
0:02:45.3]} 4. e3 {[%clk 0:02:56.8]} 4... e6 {[%clk 0:02:33.1]} 5. Bxc4 {[%clk
0:02:56.1]} 5... c5 {[%clk 0:02:24.1]} 6. O-O {[%clk 0:02:52.6]} 6... cxd4
{[%clk 0:02:19.9]} 7. exd4 {[%clk 0:02:51.5]} 7... Bd6 {[%clk 0:02:12.9]} 8. Nc3
{[%clk 0:02:46.5]} 8... O-O {[%clk 0:02:09.1]} 9. Qe2 {[%clk 0:02:40.2]} 9... a6
{[%clk 0:02:01.5]} 10. Rd1 {[%clk 0:02:30.7]} 10... Qc7 {[%clk 0:01:57.5]} 11.
Bg5 {[%clk 0:02:18.4]} 11... Nbd7 {[%clk 0:01:52.2]} 12. Rac1 {[%clk 0:02:15.5]}
12... b5 {[%clk 0:01:45.7]} 13. Bd3 {[%clk 0:01:43.7]} 13... Qb6 {[%clk
0:01:40.6]} 14. Ne4 {[%clk 0:01:33.3]} 14... Bb7 {[%clk 0:01:20.3]} 15. Nxf6+
{[%clk 0:01:30.7]} 15... Nxf6 {[%clk 0:01:13.6]} 16. Ne5 {[%clk 0:01:14]} 16...
Bxe5 {[%clk 0:00:35.9]} 17. dxe5 {[%clk 0:01:13.3]} 17... Nd5 {[%clk 0:00:35.2]}
18. Qh5 {[%clk 0:00:59.7]} 18... g6 {[%clk 0:00:30]} 19. Qh6 {[%clk 0:00:57.4]}
19... f5 {[%clk 0:00:25.8]} 20. exf6 {[%clk 0:00:46.6]} 20... Nxf6 {[%clk
0:00:19.6]} 21. Bxg6 {[%clk 0:00:35.9]} 21... Qxf2+ {[%clk 0:00:10.1]} 22. Kxf2
{[%clk 0:00:35.4]} 22... Ng4+ {[%clk 0:00:09.5]} 23. Kg1 {[%clk 0:00:24.6]}
23... Nxh6 {[%clk 0:00:09.1]} 24. Bxh6 {[%clk 0:00:23.9]} 24... hxg6 {[%clk
0:00:09.4]} 25. Bxf8 {[%clk 0:00:23.1]} 25... Rxf8 {[%clk 0:00:08.9]} 26. Rc7
{[%clk 0:00:19.5]} 26... Bd5 {[%clk 0:00:09]} 27. Rf1 {[%clk 0:00:18.4]} 27...
Rd8 {[%clk 0:00:08]} 28. Rd1 {[%clk 0:00:17.8]} 28... Rf8 {[%clk 0:00:07.3]} 29.
a3 {[%clk 0:00:15.7]} 29... Rf4 {[%clk 0:00:05.9]} 30. Rd2 {[%clk 0:00:14.7]}
30... Rc4 {[%clk 0:00:05.9]} 31. Rxc4 {[%clk 0:00:13.7]} 31... bxc4 {[%clk
0:00:06]} 32. Kf2 {[%clk 0:00:13.9]} 32... Kg7 {[%clk 0:00:06.1]} 33. Ke3 {[%clk
0:00:14.3]} 33... Kf6 {[%clk 0:00:06.5]} 34. Kd4 {[%clk 0:00:14.5]} 34... Kf5
{[%clk 0:00:06.5]} 35. Rf2+ {[%clk 0:00:14.1]} 35... Kg4 {[%clk 0:00:06]} 36.
Ke3 {[%clk 0:00:11.9]} 36... Kg5 {[%clk 0:00:05.9]} 37. g3 {[%clk 0:00:11]}
37... Kg4 {[%clk 0:00:05.7]} 38. Rf4+ {[%clk 0:00:10.8]} 38... Kh3 {[%clk
0:00:05.3]} 39. Rh4+ {[%clk 0:00:09.8]} 39... Kg2 {[%clk 0:00:04.9]} 40. Rh6
{[%clk 0:00:09.8]} 40... g5 {[%clk 0:00:04.8]} 41. h4 {[%clk 0:00:08.9]} 41...
gxh4 {[%clk 0:00:04.3]} 42. gxh4 {[%clk 0:00:09.8]} 42... Kg3 {[%clk 0:00:04.2]}
43. h5 {[%clk 0:00:09.8]} 43... Kg4 {[%clk 0:00:04.1]} 44. Rh8 {[%clk
0:00:10.1]} 44... Kf5 {[%clk 0:00:02.9]} 45. Kd4 {[%clk 0:00:09.9]} 45... Bg2
{[%clk 0:00:01.2]} 46. Rc8 {[%clk 0:00:08]} 1-0

[Event "*** Titled Tuesday Blitz"]
[Site "Chess.com"]
[Date "2020.04.21"]
[Round "1"]
[White "karinachess1"]
[Black "KhamzinOlzhas"]
[Result "0-1"]
[WhiteElo "2475"]
[BlackElo "2440"]
[TimeControl "180+1"]
[EndTime "10:08:03 PDT"]
[Termination "KhamzinOlzhas won on time"]

1. Nf3 {[%clk 0:02:38.6]} 1... c5 {[%clk 0:02:35.5]} 2. c4 {[%clk 0:02:36.6]}
2... Nc6 {[%clk 0:02:35.1]} 3. d4 {[%clk 0:02:33.5]} 3... cxd4 {[%clk 0:02:35]}
4. Nxd4 {[%clk 0:02:34.4]} 4... Nf6 {[%clk 0:02:33.6]} 5. Nc3 {[%clk 0:02:34.1]}
5... e6 {[%clk 0:02:33.8]} 6. a3 {[%clk 0:02:31.7]} 6... Bc5 {[%clk 0:02:31.9]}
7. Nc2 {[%clk 0:02:22]} 7... O-O {[%clk 0:02:15]} 8. g3 {[%clk 0:02:13]} 8...
Qb6 {[%clk 0:02:06.8]} 9. e3 {[%clk 0:02:05.3]} 9... Ne5 {[%clk 0:02:05.2]} 10.
b4 {[%clk 0:02:00.7]} 10... Qc6 {[%clk 0:02:00.3]} 11. e4 {[%clk 0:01:51.9]}
11... Nxe4 {[%clk 0:01:40.9]} 12. Nxe4 {[%clk 0:01:32.4]} 12... Qxe4+ {[%clk
0:01:41.8]} 13. Qe2 {[%clk 0:01:33.2]} 13... Nd3+ {[%clk 0:01:35.2]} 14. Kd2
{[%clk 0:01:28.4]} 14... Qxh1 {[%clk 0:01:15.5]} 15. Kxd3 {[%clk 0:01:20.5]}
15... Be7 {[%clk 0:01:12]} 16. Bb2 {[%clk 0:01:18.4]} 16... d5 {[%clk
0:00:57.6]} 17. c5 {[%clk 0:01:12.2]} 17... b6 {[%clk 0:00:43.6]} 18. Kd2 {[%clk
0:00:54.3]} 18... Qxh2 {[%clk 0:00:39.3]} 19. Ne3 {[%clk 0:00:44.6]} 19... Qh6
{[%clk 0:00:28]} 20. Kc2 {[%clk 0:00:42]} 20... bxc5 {[%clk 0:00:24.1]} 21. Ng4
{[%clk 0:00:40.3]} 21... Qg6+ {[%clk 0:00:22.7]} 22. Kb3 {[%clk 0:00:40.6]}
22... c4+ {[%clk 0:00:21.2]} 23. Ka2 {[%clk 0:00:40.8]} 23... f6 {[%clk
0:00:21.8]} 24. Re1 {[%clk 0:00:36.9]} 24... a5 {[%clk 0:00:20.6]} 25. b5 {[%clk
0:00:36.2]} 25... a4 {[%clk 0:00:20.8]} 26. Bg2 {[%clk 0:00:35.1]} 26... Bc5
{[%clk 0:00:19.6]} 27. Ne3 {[%clk 0:00:29.5]} 27... Bd7 {[%clk 0:00:19.6]} 28.
f4 {[%clk 0:00:18.1]} 28... f5 {[%clk 0:00:17.6]} 29. g4 {[%clk 0:00:16.7]}
29... fxg4 {[%clk 0:00:17.2]} 30. f5 {[%clk 0:00:17]} 30... Rxf5 {[%clk
0:00:17.4]} 31. Nxf5 {[%clk 0:00:16.8]} 31... Qxf5 {[%clk 0:00:18.3]} 32. Rf1
{[%clk 0:00:15.4]} 32... Qg6 {[%clk 0:00:18.5]} 33. Qe5 {[%clk 0:00:13.9]} 33...
Rf8 {[%clk 0:00:15.7]} 34. Rxf8+ {[%clk 0:00:09.8]} 34... Bxf8 {[%clk
0:00:16.6]} 35. b6 {[%clk 0:00:09.6]} 35... Qc2 {[%clk 0:00:14.7]} 36. Qc3
{[%clk 0:00:08.8]} 36... Qb3+ {[%clk 0:00:15]} 37. Qxb3 {[%clk 0:00:08.5]} 37...
axb3+ {[%clk 0:00:15.9]} 38. Ka1 {[%clk 0:00:08.9]} 38... Bc6 {[%clk 0:00:15.6]}
39. a4 {[%clk 0:00:07.9]} 39... Bc5 {[%clk 0:00:15.9]} 40. a5 {[%clk 0:00:07.6]}
40... d4 {[%clk 0:00:16.4]} 41. Bxc6 {[%clk 0:00:07]} 41... c3 {[%clk
0:00:17.3]} 42. b7 {[%clk 0:00:06.9]} 42... Ba7 {[%clk 0:00:17.2]} 43. Ba3
{[%clk 0:00:06]} 43... d3 {[%clk 0:00:15.8]} 44. Bb5 {[%clk 0:00:04.3]} 44... d2
{[%clk 0:00:15.2]} 45. Be2 {[%clk 0:00:04.3]} 45... c2 {[%clk 0:00:15.4]} 46.
Kb2 {[%clk 0:00:03.4]} 46... c1=Q+ {[%clk 0:00:15.1]} 47. Kxb3 {[%clk 0:00:04]}
47... d1=Q+ {[%clk 0:00:14.6]} 48. Bxd1 {[%clk 0:00:03.7]} 48... Qxd1+ {[%clk
0:00:15.5]} 49. Kb4 {[%clk 0:00:04]} 49... Qb1+ {[%clk 0:00:15.2]} 50. Kc4
{[%clk 0:00:03.5]} 50... Qxb7 {[%clk 0:00:16.1]} 51. Bd6 {[%clk 0:00:02.3]}
51... Qa6+ {[%clk 0:00:16.1]} 0-1

[Event "*** Titled Tuesday Blitz"]
[Site "Chess.com"]
[Date "2020.04.21"]
[Round "1"]
[White "kuba2006"]
[Black "gena217"]
[Result "0-1"]
[WhiteElo "2458"]
[BlackElo "2904"]
[TimeControl "180+1"]
[EndTime "10:08:05 PDT"]
[Termination "gena217 won on time"]

1. e4 {[%clk 0:03:00.9]} 1... c6 {[%clk 0:02:59.5]} 2. d4 {[%clk 0:03:00.4]}
2... d5 {[%clk 0:03:00.4]} 3. e5 {[%clk 0:03:00.8]} 3... Bf5 {[%clk 0:03:00]} 4.
Nf3 {[%clk 0:03:01.1]} 4... e6 {[%clk 0:03:00.3]} 5. a3 {[%clk 0:03:01.5]} 5...
c5 {[%clk 0:02:59.9]} 6. c4 {[%clk 0:03:01.6]} 6... Nc6 {[%clk 0:02:59.5]} 7.
cxd5 {[%clk 0:03:00.5]} 7... Qxd5 {[%clk 0:02:50]} 8. Nc3 {[%clk 0:03:00]} 8...
Qd7 {[%clk 0:02:49.8]} 9. Be3 {[%clk 0:03:00]} 9... cxd4 {[%clk 0:02:30.8]} 10.
Nxd4 {[%clk 0:03:00.9]} 10... Nxd4 {[%clk 0:02:28.4]} 11. Qxd4 {[%clk
0:02:50.6]} 11... Qxd4 {[%clk 0:02:27]} 12. Bxd4 {[%clk 0:02:51.5]} 12... a6
{[%clk 0:02:27.7]} 13. f4 {[%clk 0:02:47]} 13... Ne7 {[%clk 0:02:25.5]} 14.
O-O-O {[%clk 0:02:42]} 14... Rc8 {[%clk 0:02:23.1]} 15. Bd3 {[%clk 0:02:33.4]}
15... Nd5 {[%clk 0:02:19.9]} 16. Bxf5 {[%clk 0:02:27.1]} 16... exf5 {[%clk
0:02:20.8]} 17. Kd2 {[%clk 0:02:00.3]} 17... Nxf4 {[%clk 0:02:18.9]} 18. Rhf1
{[%clk 0:01:51.2]} 18... Ne6 {[%clk 0:02:18.5]} 19. Bb6 {[%clk 0:01:51.4]} 19...
g6 {[%clk 0:02:16.1]} 20. Nd5 {[%clk 0:01:50.2]} 20... Bg7 {[%clk 0:02:15.7]}
21. Rc1 {[%clk 0:01:35.9]} 21... Rc6 {[%clk 0:01:43.4]} 22. Rxc6 {[%clk
0:01:27.2]} 22... bxc6 {[%clk 0:01:44.3]} 23. Nf6+ {[%clk 0:01:27.5]} 23... Bxf6
{[%clk 0:01:34.9]} 24. exf6 {[%clk 0:01:28.4]} 24... Kd7 {[%clk 0:01:35.6]} 25.
a4 {[%clk 0:01:27.4]} 25... c5 {[%clk 0:01:34.7]} 26. Kc3 {[%clk 0:01:24.7]}
26... Kc6 {[%clk 0:01:34.4]} 27. a5 {[%clk 0:01:24.9]} 27... Re8 {[%clk
0:01:29.1]} 28. Re1 {[%clk 0:01:23.5]} 28... Nc7 {[%clk 0:01:26]} 29. Rxe8
{[%clk 0:00:34.7]} 29... Nxe8 {[%clk 0:01:26.9]} 30. Bd8 {[%clk 0:00:34.8]}
30... Nd6 {[%clk 0:01:21.9]} 31. Be7 {[%clk 0:00:34.9]} 31... Ne4+ {[%clk
0:01:15.2]} 32. Kc4 {[%clk 0:00:35.2]} 32... f4 {[%clk 0:01:05.3]} 33. h4 {[%clk
0:00:32.3]} 33... h6 {[%clk 0:00:59.7]} 34. Bf8 {[%clk 0:00:30.1]} 34... h5
{[%clk 0:00:51.2]} 35. Bh6 {[%clk 0:00:23.7]} 35... Nxf6 {[%clk 0:00:47.7]} 36.
Bxf4 {[%clk 0:00:23.4]} 36... Ne4 {[%clk 0:00:41.9]} 37. Be3 {[%clk 0:00:19.6]}
37... f6 {[%clk 0:00:41.2]} 38. Bf4 {[%clk 0:00:17.5]} 38... g5 {[%clk 0:00:39]}
39. hxg5 {[%clk 0:00:17.4]} 39... fxg5 {[%clk 0:00:39.9]} 40. Be5 {[%clk
0:00:17.6]} 40... h4 {[%clk 0:00:37.7]} 41. Bh2 {[%clk 0:00:11.6]} 41... g4
{[%clk 0:00:37.1]} 42. Bf4 {[%clk 0:00:11.3]} 42... h3 {[%clk 0:00:32.6]} 43.
gxh3 {[%clk 0:00:11.4]} 43... gxh3 {[%clk 0:00:33.5]} 44. Kd3 {[%clk 0:00:11.6]}
44... Kd5 {[%clk 0:00:26.1]} 45. Ke3 {[%clk 0:00:10.7]} 45... Nd6 {[%clk
0:00:22.7]} 46. Kf3 {[%clk 0:00:09.9]} 46... Nc4 {[%clk 0:00:21]} 47. Bc1 {[%clk
0:00:06.2]} 47... Nxa5 {[%clk 0:00:15]} 48. Kg3 {[%clk 0:00:05.9]} 48... Kc4
{[%clk 0:00:15.2]} 49. Kxh3 {[%clk 0:00:05.8]} 49... Kb3 {[%clk 0:00:15.5]} 50.
Kg3 {[%clk 0:00:04.7]} 50... Nc4 {[%clk 0:00:15.2]} 51. Kf3 {[%clk 0:00:04.6]}
51... Nxb2 {[%clk 0:00:15.7]} 52. Ke3 {[%clk 0:00:04.2]} 52... c4 {[%clk
0:00:16.2]} 53. Kd4 {[%clk 0:00:01.7]} 53... c3 {[%clk 0:00:16.6]} 54. Kc5
{[%clk 0:00:01.3]} 54... a5 {[%clk 0:00:16.7]} 0-1

[Event "*** Titled Tuesday Blitz"]
[Site "Chess.com"]
[Date "2020.04.21"]
[Round "1"]
[White "Frogo47"]
[Black "warmoatmeal"]
[Result "1-0"]
[WhiteElo "2495"]
[BlackElo "1972"]
[TimeControl "180+1"]
[EndTime "10:08:09 PDT"]
[Termination "Frogo47 won on time"]

1. d4 {[%clk 0:02:58.7]} 1... Nf6 {[%clk 0:02:59.3]} 2. c4 {[%clk 0:02:55.3]}
2... e6 {[%clk 0:02:58.2]} 3. Nf3 {[%clk 0:02:55.2]} 3... d5 {[%clk 0:02:56.1]}
4. g3 {[%clk 0:02:55.4]} 4... Be7 {[%clk 0:02:53.8]} 5. Bg2 {[%clk 0:02:55.8]}
5... O-O {[%clk 0:02:54.4]} 6. O-O {[%clk 0:02:55.9]} 6... dxc4 {[%clk 0:02:55]}
7. Ne5 {[%clk 0:02:56.1]} 7... c5 {[%clk 0:02:54.3]} 8. dxc5 {[%clk 0:02:54.3]}
8... Bxc5 {[%clk 0:02:52.4]} 9. Nxc4 {[%clk 0:02:51.6]} 9... Nc6 {[%clk
0:02:50.7]} 10. Nc3 {[%clk 0:02:49.2]} 10... Qe7 {[%clk 0:02:43]} 11. a3 {[%clk
0:02:44]} 11... Rd8 {[%clk 0:02:42.5]} 12. Qa4 {[%clk 0:02:42.5]} 12... Bd7
{[%clk 0:02:41.9]} 13. Qb3 {[%clk 0:02:27.7]} 13... Be8 {[%clk 0:02:33]} 14. Bg5
{[%clk 0:02:18.5]} 14... Nd4 {[%clk 0:02:18.2]} 15. Qa2 {[%clk 0:02:15.2]} 15...
Rac8 {[%clk 0:02:07.4]} 16. e3 {[%clk 0:02:05.7]} 16... Nb5 {[%clk 0:01:56.7]}
17. Ne4 {[%clk 0:02:01.3]} 17... Bc6 {[%clk 0:01:42.7]} 18. Nxf6+ {[%clk
0:01:27]} 18... gxf6 {[%clk 0:01:40.8]} 19. Bh4 {[%clk 0:01:24.7]} 19... Bxg2
{[%clk 0:01:22.7]} 20. Kxg2 {[%clk 0:01:25.6]} 20... Nd6 {[%clk 0:01:08.3]} 21.
Nxd6 {[%clk 0:01:15.8]} 21... Bxd6 {[%clk 0:01:01.7]} 22. Rad1 {[%clk
0:01:15.4]} 22... Be5 {[%clk 0:00:59.6]} 23. Qb3 {[%clk 0:01:10.5]} 23... Qc7
{[%clk 0:00:47.1]} 24. Rc1 {[%clk 0:00:55.3]} 24... Qb6 {[%clk 0:00:35.1]} 25.
Qxb6 {[%clk 0:00:52.5]} 25... axb6 {[%clk 0:00:34.1]} 26. b3 {[%clk 0:00:48.8]}
26... Rxc1 {[%clk 0:00:31.5]} 27. Rxc1 {[%clk 0:00:48.5]} 27... Rd3 {[%clk
0:00:32.4]} 28. Rb1 {[%clk 0:00:47]} 28... Kg7 {[%clk 0:00:28.3]} 29. Kf3 {[%clk
0:00:46.9]} 29... b5 {[%clk 0:00:21.1]} 30. Ke2 {[%clk 0:00:46.5]} 30... Rd6
{[%clk 0:00:19.1]} 31. a4 {[%clk 0:00:34.2]} 31... b4 {[%clk 0:00:18.6]} 32. Rd1
{[%clk 0:00:30.6]} 32... Rxd1 {[%clk 0:00:17.8]} 33. Kxd1 {[%clk 0:00:30.7]}
33... Bc3 {[%clk 0:00:18.6]} 34. Ke2 {[%clk 0:00:30.2]} 34... Kg6 {[%clk
0:00:16.6]} 35. g4 {[%clk 0:00:28.8]} 35... f5 {[%clk 0:00:14.9]} 36. h3 {[%clk
0:00:27.9]} 36... Bf6 {[%clk 0:00:13.6]} 37. Bg3 {[%clk 0:00:27]} 37... fxg4
{[%clk 0:00:13.2]} 38. hxg4 {[%clk 0:00:26.9]} 38... Kg5 {[%clk 0:00:12]} 39. f3
{[%clk 0:00:25.4]} 39... h5 {[%clk 0:00:11]} 40. gxh5 {[%clk 0:00:25.2]} 40...
Kxh5 {[%clk 0:00:11.5]} 41. Be1 {[%clk 0:00:23.2]} 41... Be7 {[%clk 0:00:07.7]}
42. Kd3 {[%clk 0:00:23.3]} 42... f6 {[%clk 0:00:07.3]} 43. Kc4 {[%clk
0:00:23.2]} 43... e5 {[%clk 0:00:07.5]} 44. a5 {[%clk 0:00:22.2]} 44... Bd8
{[%clk 0:00:07.3]} 45. Bxb4 {[%clk 0:00:21.5]} 45... Kh4 {[%clk 0:00:04.8]} 46.
Be1+ {[%clk 0:00:21]} 46... Kh3 {[%clk 0:00:02.8]} 47. Kd3 {[%clk 0:00:19.8]}
47... Kg2 {[%clk 0:00:03]} 48. f4 {[%clk 0:00:18.4]} 48... f5 {[%clk 0:00:03.4]}
49. fxe5 {[%clk 0:00:17.6]} 1-0

[Event "*** Titled Tuesday Blitz"]
[Site "Chess.com"]
[Date "2020.04.21"]
[Round "1"]
[White "AvitalBor"]
[Black "littleozy"]
[Result "1-0"]
[WhiteElo "2803"]
[BlackElo "2423"]
[TimeControl "180+1"]
[EndTime "10:08:10 PDT"]
[Termination "AvitalBor won on time"]

1. e4 {[%clk 0:03:00.9]} 1... c6 {[%clk 0:02:59.9]} 2. c4 {[%clk 0:02:59.4]}
2... d5 {[%clk 0:03:00.8]} 3. cxd5 {[%clk 0:03:00.3]} 3... cxd5 {[%clk
0:03:00.8]} 4. exd5 {[%clk 0:03:01.2]} 4... Nf6 {[%clk 0:03:00.2]} 5. Nf3 {[%clk
0:03:01.7]} 5... g6 {[%clk 0:02:57.8]} 6. Nc3 {[%clk 0:03:02.6]} 6... Bg7 {[%clk
0:02:57.4]} 7. Bc4 {[%clk 0:03:03]} 7... O-O {[%clk 0:02:55.4]} 8. O-O {[%clk
0:03:02.7]} 8... a6 {[%clk 0:02:54.9]} 9. Bb3 {[%clk 0:02:58.9]} 9... Nbd7
{[%clk 0:02:54.5]} 10. d4 {[%clk 0:02:58.8]} 10... Nb6 {[%clk 0:02:51.6]} 11. h3
{[%clk 0:02:58.6]} 11... Nbxd5 {[%clk 0:02:50]} 12. Re1 {[%clk 0:02:58.8]} 12...
e6 {[%clk 0:02:43.1]} 13. Bg5 {[%clk 0:02:54]} 13... Qd6 {[%clk 0:02:41.1]} 14.
Qd2 {[%clk 0:02:46.5]} 14... b5 {[%clk 0:02:39.9]} 15. Rac1 {[%clk 0:02:44]}
15... Bb7 {[%clk 0:02:38.4]} 16. Ne5 {[%clk 0:02:23.6]} 16... Rac8 {[%clk
0:02:31.2]} 17. Bh4 {[%clk 0:02:22.9]} 17... Nxc3 {[%clk 0:02:03.2]} 18. bxc3
{[%clk 0:02:19.8]} 18... Nd5 {[%clk 0:01:55.2]} 19. Bg3 {[%clk 0:02:16.1]} 19...
Qe7 {[%clk 0:01:51.5]} 20. Nd3 {[%clk 0:02:15.1]} 20... Nb6 {[%clk 0:01:43.3]}
21. Nc5 {[%clk 0:02:11.3]} 21... Bd5 {[%clk 0:01:36.6]} 22. Nxa6 {[%clk
0:01:57.4]} 22... Bxg2 {[%clk 0:01:29.3]} 23. Kxg2 {[%clk 0:01:58.3]} 23... Qb7+
{[%clk 0:01:28.8]} 24. d5 {[%clk 0:01:55.2]} 24... Qxa6 {[%clk 0:01:21]} 25.
dxe6 {[%clk 0:01:54.7]} 25... Nc4 {[%clk 0:01:13.6]} 26. Qd5 {[%clk 0:01:46.9]}
26... fxe6 {[%clk 0:01:05.9]} 27. Rxe6 {[%clk 0:01:42.2]} 27... Qa8 {[%clk
0:01:00.5]} 28. Qxa8 {[%clk 0:01:27.7]} 28... Rxa8 {[%clk 0:01:01.4]} 29. a4
{[%clk 0:01:19.9]} 29... Nd2 {[%clk 0:00:55.8]} 30. Bd5 {[%clk 0:01:18.8]} 30...
Rad8 {[%clk 0:00:55]} 31. Rd6+ {[%clk 0:01:17.7]} 31... Kh8 {[%clk 0:00:53.4]}
32. axb5 {[%clk 0:01:17.1]} 32... Rxd6 {[%clk 0:00:51.3]} 33. Bxd6 {[%clk
0:01:13.3]} 33... Rd8 {[%clk 0:00:51.1]} 34. Ra1 {[%clk 0:01:00.3]} 34... Bxc3
{[%clk 0:00:50.2]} 35. Ra8 {[%clk 0:01:00]} 35... Rxa8 {[%clk 0:00:45.6]} 36.
Bxa8 {[%clk 0:01:00.9]} 36... Nc4 {[%clk 0:00:42.9]} 37. Bc5 {[%clk 0:00:55.7]}
37... Ba5 {[%clk 0:00:41.8]} 38. Bd5 {[%clk 0:00:55.2]} 38... Nb6 {[%clk
0:00:41.2]} 39. Bb3 {[%clk 0:00:52.3]} 39... Kg7 {[%clk 0:00:39]} 40. Kf3 {[%clk
0:00:51.5]} 40... Kf6 {[%clk 0:00:38]} 41. Ke4 {[%clk 0:00:51.8]} 41... h5
{[%clk 0:00:35.3]} 42. f4 {[%clk 0:00:51.3]} 42... Nd7 {[%clk 0:00:31.4]} 43.
Bd4+ {[%clk 0:00:51.3]} 43... Ke7 {[%clk 0:00:29.7]} 44. Kd5 {[%clk 0:00:50.8]}
44... Bc7 {[%clk 0:00:18.1]} 45. Bc2 {[%clk 0:00:50.2]} 45... Bxf4 {[%clk
0:00:16.4]} 46. Bxg6 {[%clk 0:00:49.5]} 46... h4 {[%clk 0:00:15.7]} 47. Bf5
{[%clk 0:00:47.5]} 47... Nb8 {[%clk 0:00:13]} 48. b6 {[%clk 0:00:44]} 48... Bg3
{[%clk 0:00:11]} 49. Bg4 {[%clk 0:00:42.5]} 49... Kd8 {[%clk 0:00:10.8]} 50.
Bf6+ {[%clk 0:00:42]} 50... Ke8 {[%clk 0:00:09]} 51. b7 {[%clk 0:00:38.6]} 51...
Kf7 {[%clk 0:00:08.1]} 52. Bg5 {[%clk 0:00:35.3]} 52... Ke8 {[%clk 0:00:07.8]}
53. Ke6 {[%clk 0:00:33.5]} 53... Kf8 {[%clk 0:00:07.1]} 54. Be7+ {[%clk
0:00:29.9]} 54... Kg7 {[%clk 0:00:06.3]} 55. Bd6 {[%clk 0:00:23.3]} 55... Kg6
{[%clk 0:00:03.2]} 56. Be7 {[%clk 0:00:20.6]} 1-0